Cogmind - Beta 16 @@@ ROGUE MODE // 2025.10.22 @ 22:31:57 Player: jumpy Result: Destroyed by G-73 Enforcer with Phase Gun Performance ------------- Evolutions (6) 3000 Regions Visited (17) 3400 Robots Destroyed (179) 895 Value Destroyed (7856) 7856 Prototype IDs (11) 220 Alien Tech Used (0) 0 Bonus (4509) 4509 TOTAL SCORE: 19880 Bonus ------- High Alert Combat Kills 152 Follower Combat Kills 477 Entered Garrisons 400 Used RIF Installer 500 Acquired ECA 300 Met Warlord at Base 500 MAIN.C Attacked Warlord 500 Warlord Defense Kills 1714 Friendly Fire -34 Cogmind --------- Core Integrity 0/1150 Matter 35/300 Energy 1170/1170 System Corruption 9% Temperature Cool (0) Movement Hovering (66) Location -4/Factory Parts ------- > --- POWER (2) -------- Light Antimatter Reactor Hybrid Antimatter Reactor > --- PROPULSION (5) --- Combat Airjet Combat Gravmag System Improved Antigrav System > --- UTILITY (8) ------ Experimental Cooling System Enhanced Optical Array Advanced Signal Interpreter Core Analyzer > --- WEAPON (4) ------- (None) > --- INVENTORY (5) ---- Improved Gyrokinetic Inverter Experimental Heat Sink Encrypted Comm Array Micro-nuke Launcher Peak State ------------ > --- POWER ------------ Light Particle Reactor > --- PROPULSION ------- Flexi-carbon Leg Myomer Leg Advanced VSS Leg Advanced VSS Leg Enhanced Biometal Leg > --- UTILITY ---------- Advanced Cooling System Large Storage Unit 0b10 Decoder Chip [Skirmisher] 0b10 Decoder Chip [Skirmisher] Advanced Targeting Computer Advanced Targeting Computer Core Analyzer Hardened Light Armor Plating > --- WEAPON ----------- Heavy Phase Cannon Enhanced Gauss Cannon Axe > --- INVENTORY -------- Antimatter Reactor Reinforced Antimatter Reactor Reinforced Antimatter Reactor Carbon-fiber Leg Carbon-fiber Leg Flexi-carbon Leg Enhanced Biometal Leg Armored Huge Wheel Enhanced Optical Array Encrypted Comm Array Improved Hacking Suite Compact Ion Cannon Rocket Launcher RU-N14's Throwing Claymores v3 [Rating: 95] Favorites ----------- Power Cooled Ion Engine Engine Cooled Ion Engine Power Core Light Fission Core Reactor Antimatter Reactor Propulsion Carbon-fiber Leg Treads Light Treads Leg Carbon-fiber Leg Wheel Armored Huge Wheel Hover Unit Antigrav System Flight Unit Field Propulsion Drive Utility Advanced Targeting Computer Device Advanced Cooling System Storage Large Storage Unit Processor Advanced Targeting Computer Hackware Hacking Suite Protection Improved Light Armor Plating Weapon Medium Laser Energy Gun Medium Laser Energy Cannon Compact Ion Cannon Ballistic Gun Light Assault Rifle Ballistic Cannon Enhanced Gauss Cannon Launcher Improved Grenade Launcher Special Weapon RU-N14's Throwing Claymores v3 Impact Weapon Heavy Mace Slashing Weapon Axe Special Melee Weapon Datajack Build | -11 -10 -9 -8 -8 -8 -7 -6 -5 -5 -5 -5 -4 -4 -4 -4 -4 -4 ------- Run | Yrd Mat Mat Mat Gar Mat Fac Fac Fac Upp Upp War Pro Fac Was Fac Gar Fac Slots Evolved 12 | . . 2 2 . . 2 2 2 . . . . 2 . . . . Power 1 | . . . . . . . . . . . . . 1 . . . . Propulsion 3 | . . . 1 . . 1 . 1 . . . . . . . . . Utility 6 | . . 1 1 . . 1 2 1 . . . . . . . . . Weapon 2 | . . 1 . . . . . . . . . . 1 . . . . Parts Attached 172 | 8 5 9 . 20 16 15 11 5 6 7 16 11 15 . 20 . 8 Power 22 | 2 1 1 . 2 1 1 1 . 1 . 2 3 3 . 2 . 2 Engine 8 | 2 1 1 . 2 1 . 1 . . . . . . . . . . Core 2 | . . . . . . 1 . . 1 . . . . . . . . Reactor 12 | . . . . . . . . . . . 2 3 3 . 2 . 2 Propulsion 60 | 2 1 3 . 5 8 1 3 1 3 4 9 2 3 . 10 . 5 Treads 3 | . . . . . 3 . . . . . . . . . . . . Leg 39 | 2 1 3 . 5 3 1 3 1 3 4 9 2 2 . . . . Wheel 3 | . . . . . 1 . . . . . . . 1 . 1 . . Hover 12 | . . . . . . . . . . . . . . . 7 . 5 Flight 3 | . . . . . 1 . . . . . . . . . 2 . . Utility 50 | 2 1 3 . 7 4 7 4 1 1 3 2 2 6 . 6 . 1 Device 22 | 1 . 3 . 3 1 4 . 1 1 . 1 . 2 . 4 . 1 Storage 2 | 1 1 . . . . . . . . . . . . . . . . Processor 9 | . . . . . 1 . 2 . . 2 1 . 2 . 1 . . Hackware 6 | . . . . 1 1 2 1 . . . . . 1 . . . . Protection 11 | . . . . 3 1 1 1 . . 1 . 2 1 . 1 . . Artifact . | . . . . . . . . . . . . . . . . . . Weapon 40 | 2 2 2 . 6 3 6 3 3 1 . 3 4 3 . 2 . . Energy Gun 16 | 2 2 1 . 1 1 4 . 3 . . 1 . 1 . . . . Energy Cannon 6 | . . 1 . 1 . . 2 . . . 1 1 . . . . . Ballistic Gun 3 | . . . . 2 . . . . . . . . 1 . . . . Ballistic Cannon 4 | . . . . . 1 1 . . 1 . . . . . 1 . . Launcher 3 | . . . . . 1 . . . . . . 1 . . 1 . . Special Weapon 2 | . . . . . . . . . . . 1 1 . . . . . Impact Weapon 1 | . . . . . . . . . . . . . 1 . . . . Slashing Weapon 4 | . . . . 2 . . 1 . . . . 1 . . . . . Piercing Weapon . | . . . . . . . . . . . . . . . . . . Special Melee Weapon 1 | . . . . . . 1 . . . . . . . . . . . Unidentified Prototypes 8 | . . 2 . . 1 . 1 . . . 2 . . . 1 . 1 Parts Lost 83 | . . 2 . 14 3 2 . . 4 3 1 14 22 1 7 6 4 Power 7 | . . . . 1 . . . . . . . . 4 . 1 1 . Propulsion 31 | . . . . 3 2 . . . 2 2 . 6 7 . 3 4 2 Utility 27 | . . 1 . 5 . 1 . . 1 1 1 3 7 1 3 1 2 Weapon 18 | . . 1 . 5 1 1 . . 1 . . 5 4 . . . . Highest Loss Streak 11 | . . 1 . 9 2 2 . . 4 2 1 6 11 1 3 6 3 To Critical Strikes . | . . . . . . . . . . . . . . . . . . Average Backups 10 | 4 7 12 14 11 14 13 13 13 13 12 13 10 3 1 4 4 3 Power 1 | . 1 2 3 1 . . 2 3 3 3 3 2 . . . . . Propulsion 2 | 1 2 3 2 2 1 1 4 3 2 1 1 3 . . 1 3 1 Utility 3 | . 2 3 6 5 7 5 2 2 2 2 1 1 1 . 1 . . Weapon 3 | . 2 2 3 1 2 5 5 5 5 5 6 1 . . . . 1 Tool/Special . | . . . . . . . . . . . . . . . . . . Unused Backups 27 | . . 3 . 2 2 4 2 4 . . 1 3 . . 2 . 4 Power 3 | . . . . . . . . . . . 1 1 . . . . 1 Propulsion 6 | . . 1 . . . . . . . . . 2 . . 2 . 1 Utility 7 | . . 1 . 1 1 3 . . . . . . . . . . 1 Weapon 11 | . . 1 . 1 1 1 2 4 . . . . . . . . 1 Tool/Special . | . . . . . . . . . . . . . . . . . . Average Slot Usage (%) 85 | . 100 99 90 86 95 98 98 95 94 93 100 89 61 17 45 52 37 Engine 4 | . 14 11 9 9 9 3 5 5 . . . . . . . . . Core 1 | . . . . . . 3 . . 4 5 4 . . . . . . Reactor 1 | . . . . . . . . . . . . 5 8 . 3 2 2 Leg 22 | . 28 22 27 24 23 30 26 29 28 27 29 27 8 . . . . Hover 1 | . . . . . . . . . . . . . . . 8 14 11 Device 8 | . 14 21 18 11 9 6 6 6 12 5 5 2 1 . 7 10 6 Storage 6 | . 14 11 9 9 9 7 6 5 5 5 5 5 2 . . . . Processor 13 | . . . . . 5 7 18 17 17 24 29 29 24 12 14 15 15 Hackware 1 | . . . . . 3 7 6 5 . . . . 1 5 . . . Protection 4 | . . . . 6 5 5 6 5 5 5 5 4 2 . 2 3 . Energy Gun 8 | . 28 32 27 8 3 17 11 12 12 . . . . . . . . Energy Cannon 2 | . . . . 2 . . 5 2 . 5 5 6 4 . . . . Ballistic Gun 1 | . . . . 9 6 . . . . . . . 1 . . . . Ballistic Cannon 2 | . . . . . 8 2 . . . 5 5 1 . . 2 4 . Slashing Weapon 2 | . . . . 3 6 . 2 1 . 5 4 2 . . . . . Peak Build Rating 95 | 7 8 17 17 29 34 43 57 66 69 68 94 95 82 22 91 76 76 Average Rating 45 | 6 7 13 17 21 27 40 52 62 64 64 73 83 57 16 52 58 42 On Entrance 38 | . 7 8 16 17 22 33 43 57 66 60 68 94 68 22 15 70 29 Avg Prop Armor Cover (%) 8 | . . . . . 8 . . . . . . . . . 4 . 12 Naked Turns . | . . . . . . . . . . . . . . . . . . Heaviest Build 79 | 14 30 37 37 50 44 49 51 54 54 53 66 67 79 . 47 39 26 Greatest Support 123 | 20 20 23 33 43 51 68 68 79 79 82 111 123 110 3 55 44 62 Greatest Overweight (x) 8 | . 2 1 1 2 4 . . . . 1 . . 8 . 3 2 . Average Overweight (x) . | . . 1 1 . 1 . . . . . . . . . . . . Largest Inventory Capacity 15 | 8 15 15 15 15 15 15 15 15 15 15 15 15 15 5 5 5 5 Average Capacity 13 | 7 14 15 15 15 15 15 15 15 15 15 15 15 9 5 5 5 5 Most Carried 15 | 6 11 15 14 15 15 15 15 15 15 15 15 15 8 2 5 5 5 Average Carried 11 | 4 7 12 14 11 14 13 14 14 14 13 14 11 3 1 4 4 3 Final Capacity 15 | 8 15 15 15 15 15 15 15 15 15 15 15 15 5 5 5 5 5 Final Carried 15 | 6 11 15 14 13 13 15 15 15 14 13 15 9 1 2 5 5 4 Class Distribution -------------------- 34% | Mutant 24% | Scavenger-Mutant 18% | Gunner 9% | Scout 4% | Scavenger-Gunner Dominant Class ---------------- Mutant | -10/Materials Gunner | -9/Materials Gunner | -8/Materials Mutant | -8/Garrison Scavenger-Mutant | -8/Materials Gunner | -7/Factory Gunner | -6/Factory Commander-Gunner | -5/Factory Scavenger-Gunner | -5/Upper Caves Mutant | -5/Upper Caves Mutant | -5/Warlord Scavenger-Mutant | -4/Proximity Caves Scavenger-Mutant | -4/Factory Mutant | -4/Waste Scout | -4/Factory Scout | -4/Garrison Scout | -4/Factory Resources | -11 -10 -9 -8 -8 -8 -7 -6 -5 -5 -5 -5 -4 -4 -4 -4 -4 -4 ----------- Run | Yrd Mat Mat Mat Gar Mat Fac Fac Fac Upp Upp War Pro Fac Was Fac Gar Fac Matter Collected 3138 | 280 70 139 . 318 454 411 120 10 95 253 456 218 82 . 122 . 110 Remotely . | . . . . . . . . . . . . . . . . . . Salvage Created 6681 | 231 283 757 . 760 1029 244 225 27 729 278 709 825 367 . 203 14 . Parts 266 | 23 12 27 . 40 59 13 9 3 19 5 15 14 9 . 14 4 . Haulers Intercepted 8 | . 1 1 . . 5 1 . . . . . . . . . . . Recyclers Shooed . | . . . . . . . . . . . . . . . . . . Parts Field Recycled . | . . . . . . . . . . . . . . . . . . Retrieved Matter . | . . . . . . . . . . . . . . . . . . Parts Self-Destructed 37 | . . . . . . . . . 18 10 . 9 . . . . . Prevented 2 | . . . . . . . . . . . . 2 . . . . . Parts Restored . | . . . . . . . . . . . . . . . . . . Kills | -11 -10 -9 -8 -8 -8 -7 -6 -5 -5 -5 -5 -4 -4 -4 -4 -4 -4 ------- Run | Yrd Mat Mat Mat Gar Mat Fac Fac Fac Upp Upp War Pro Fac Was Fac Gar Fac Combat Hostiles Destroyed 143 | . 6 16 . 23 18 6 5 . 14 8 14 17 5 . 7 4 . Melee 1 | . . . . . . . . . . . . . 1 . . . . Guns 52 | . 6 13 . 10 3 5 2 . 12 . . . 1 . . . . Cannons 58 | . . . . 11 13 1 2 . . 8 11 7 2 . 3 . . AOE 19 | . . . . . 2 . . . . . 2 7 . . 4 4 . Classes Destroyed 20 | 3 3 4 . 1 2 1 . . 1 1 4 . . . . . . Worker 6 | 1 2 1 . . 1 . . . . . . . . . 1 . . Builder 3 | . . . . . 2 1 . . . . . . . . . . . Tunneler 10 | 8 . . . . . 1 . . . . . . 1 . . . . Hauler 8 | . 1 1 . . 5 1 . . . . . . . . . . . Recycler 5 | 1 . 1 . . 3 . . . . . . . . . . . . Mechanic 1 | . . . . . . . . . . . 1 . . . . . . Operator 2 | . . 1 . . . . . 1 . . . . . . . . . Watcher 1 | . . . . . . 1 . . . . . . . . . . . Swarmer 42 | . 2 3 . 11 4 4 2 . 5 2 . 1 . . 4 4 . Saboteur 1 | . . . . . . . . . . . 1 . . . . . . Grunt 54 | . 4 8 . 8 5 . 3 . 6 3 5 7 4 . 1 . . Brawler 6 | . . 1 . . . . . . . . 4 . 1 . . . . Duelist 7 | . . 1 . . 1 . . . 1 1 . 3 . . . . . Protector 1 | . . . . . . . . . . . 1 . . . . . . Sentry 12 | . . 3 . . 6 1 . . 1 . . 1 . . . . . Specialist 2 | . . . . . 2 . . . . . . . . . . . . Hunter 5 | . . . . . . . . . . 1 . 4 . . . . . Programmer 11 | . . . . 4 . 1 . . . 1 2 1 . . 2 . . Behemoth 1 | . . . . . . . . . 1 . . . . . . . . Striker 1 | . . . . . . . . . . . 1 . . . . . . Best Kill Streak 7 | 3 2 7 . 4 7 5 3 1 7 3 4 4 2 . 5 4 . Combat Bots Only 7 | . 2 6 . 4 3 4 3 . 7 3 3 4 2 . 4 4 . Max Kills in Single Turn 4 | 1 1 1 . 1 3 1 2 1 2 2 1 2 1 . 4 2 . Gunslinging 1 | . . . . . . . 1 . 1 . . . . . . . . Exploded 4 | . . . . . 2 . . . . . 1 2 . . 4 2 . Melee 1 | . . . . . . . . . . . . . 1 . . . . Uniques/NPCs Destroyed . | . . . . . . . . . . . . . . . . . . Combat | -11 -10 -9 -8 -8 -8 -7 -6 -5 -5 -5 -5 -4 -4 -4 -4 -4 -4 -------- Run | Yrd Mat Mat Mat Gar Mat Fac Fac Fac Upp Upp War Pro Fac Was Fac Gar Fac Hostile Shots Fired 1120 | . 26 46 . 192 78 101 33 . 60 53 39 156 194 1 67 49 25 Missed 317 | . 9 15 . 47 24 33 12 . 13 13 12 48 38 . 25 16 12 Hits 803 | . 17 31 . 145 54 68 21 . 47 40 27 108 156 1 42 33 13 Melee 12 | . . 2 . . . . . . 2 . 1 6 . 1 . . . Projectile 791 | . 17 29 . 145 54 68 21 . 45 40 26 102 156 . 42 33 13 Critical Strikes 44 | . . 1 . 12 3 . . . 3 3 2 2 12 1 4 . 1 Part Disruptions 2 | . . . . 1 . . . . . . . . . . . . 1 Damage Taken 14370 | . 184 414 . 1915 776 697 451 15 940 783 665 2442 3156 43 911 604 374 Core 2221 | . 59 65 . 152 116 74 33 15 96 114 104 223 676 43 190 166 95 Absorbed by Shields . | . . . . . . . . . . . . . . . . . . Regen/Repaired (Parts) 288 | . . . . . . . . . . . 288 . . . . . . Core Remaining (%) 77 | 100 76 83 . . 51 89 96 . . . . 44 . . . . . Volleys Fired 448 | 27 23 45 . 76 58 28 16 3 25 25 39 35 21 . 21 6 . Largest 3 | 2 2 3 . 3 3 3 3 2 3 2 2 2 2 . 2 1 . Hottest 239 | 90 100 150 . 150 165 189 189 180 239 137 137 180 153 . 100 51 . Shots Fired 943 | 54 46 133 . 151 119 81 42 6 64 50 76 58 35 . 22 6 . Gun 573 | 54 46 133 . 90 61 79 30 . 64 . . . 16 . . . . Cannon 349 | . . . . 61 54 2 12 6 . 50 73 49 19 . 21 2 . Launcher 13 | . . . . . 4 . . . . . . 4 . . 1 4 . Special 8 | . . . . . . . . . . . 3 5 . . . . . Kinetic 222 | . . . . 34 86 2 . . . 25 36 5 11 . 21 2 . Thermal 687 | 54 46 133 . 104 29 79 42 6 64 25 37 44 24 . . . . Explosive 21 | . . . . . 4 . . . . . 3 9 . . 1 4 . Electromagnetic 13 | . . . . 13 . . . . . . . . . . . . . Robot Hit Streak 28 | 8 8 21 . 15 9 23 7 9 28 16 11 11 9 . 4 . . Robot Miss Streak 6 | 4 4 2 . 5 6 2 3 1 1 4 3 3 2 . 2 5 . Penetration Max 1 | . . . . . . . . . . 1 1 1 1 . . . . Secondary Targets 14 | . 1 . . 3 . 2 1 . 7 . . . . . . . . Max Gunslinging Chain 2 | . 1 . . 1 . 1 1 . 2 . . . . . . . . Shots Hit Robots 649 | 27 29 89 . 89 91 57 23 5 55 41 55 40 35 . 13 . . Core Hits 346 | 10 15 33 . 37 82 23 9 2 27 13 26 30 17 . 18 4 . Critical Kills 4 | . . . . . . . . . . . 1 2 1 . . . . Critical Parts Destroyed 1 | . . . . . . . . . . . . . 1 . . . . Critical Strikes 46 | . 3 9 . 6 1 1 3 . 4 4 6 4 2 . 3 . . Burn 25 | . 3 9 . 4 1 1 3 . 4 . . . . . . . . Meltdown 3 | . . . . . . . . . . . 1 2 . . . . . Destroy 1 | . . . . . . . . . . . . . 1 . . . . Blast 13 | . . . . . . . . . . 4 5 1 . . 3 . . Corrupt 1 | . . . . 1 . . . . . . . . . . . . . Smash 1 | . . . . . . . . . . . . . 1 . . . . Sever 2 | . . . . 1 . . . . . . . 1 . . . . . Melee Attacks 33 | . . . . 12 1 1 . . . 2 . 1 16 . . . . Impact 16 | . . . . . . . . . . . . . 16 . . . . Slashing 16 | . . . . 12 1 . . . . 2 . 1 . . . . . Piercing . | . . . . . . . . . . . . . . . . . . Sneak Attacks 1 | . . . . . 1 . . . . . . . . . . . . Combat Hostiles . | . . . . . . . . . . . . . . . . . . Follow-up Attacks . | . . . . . . . . . . . . . . . . . . Damage Inflicted 17188 | 323 361 1180 . 1651 1983 1027 578 138 1017 1182 2477 2625 1139 . 936 538 33 Guns 5700 | 323 354 1170 . 743 506 980 336 . 1017 . . . 271 . . . . Cannons 7169 | . . . . 814 1024 47 242 138 . 1182 1778 1105 434 . 405 . . Explosions 3277 | . . . . . 393 . . . . . 608 1267 . . 475 534 . Melee 561 | . . . . 94 60 . . . . . . . 407 . . . . Ramming 137 | . 7 10 . . . . . . . . . . 27 . 56 4 33 Kinetic 3860 | . . . . 186 1195 47 . . . 643 1025 140 219 . 405 . . Thermal 8689 | 323 354 1170 . 1051 335 980 578 138 1017 539 753 965 486 . . . . Explosive 3054 | . . . . . 393 . . . . . 608 1267 . . 252 534 . Electromagnetic 543 | . . . . 320 . . . . . . . . . . 223 . . Impact 407 | . . . . . . . . . . . . . 407 . . . . Slashing 498 | . . . . 94 60 . . . . . 91 253 . . . . . Piercing . | . . . . . . . . . . . . . . . . . . Highest Corruption 11 | . . 1 . 11 11 . . . . 2 2 . . . 2 2 9 Average Corruption 6 | . . 1 . 10 11 . . . . 1 2 . . . 2 2 2 Corruption Purged . | . . . . . . . . . . . . . . . . . . Corruption Blocked . | . . . . . . . . . . . . . . . . . . Effects 110 | . . 4 . 38 47 . . . . 6 1 . . . 2 1 11 Message Errors 35 | . . . . 10 19 . . . . 3 . . . . 1 . 2 Matter Fused 26 | . . 1 . 9 9 . . . . 1 . . . . . . 6 Heat Flow Errors 8 | . . . . 4 2 . . . . 1 . . . . . . 1 Energy Discharges 8 | . . 2 . 4 . . . . . 1 . . . . 1 . . Parts Rejected 4 | . . . . 2 2 . . . . . . . . . . . . Data Loss (minor) 15 | . . 1 . 3 8 . . . . . . . . . . 1 2 Data Loss (major) 7 | . . . . 4 3 . . . . . . . . . . . . Misfires 2 | . . . . . 1 . . . . . 1 . . . . . . Weapon Failures 5 | . . . . 2 3 . . . . . . . . . . . . Overload Shots . | . . . . . . . . . . . . . . . . . . Overflow Damage 347 | . . . . 10 5 . . 8 . 54 109 48 28 . 30 55 . Projectiles 160 | . . . . 2 5 . . 8 . 54 57 6 7 . 21 . . Explosions 154 | . . . . . . . . . . . 52 42 . . 5 55 . Melee 33 | . . . . 8 . . . . . . . . 21 . 4 . . Knockbacks 42 | . . . . . 23 . . . . 7 2 . 4 . 6 . . Impact 4 | . . . . . . . . . . . . . 4 . . . . Kinetic 38 | . . . . . 23 . . . . 7 2 . . . 6 . . Secondary . | . . . . . . . . . . . . . . . . . . Self-Inflicted Damage 166 | . . . . . . . . . . . . 121 . . 27 2 16 Shots 4 | . . . . . . . . . . . . 4 . . . . . Rammed 8 | . . . . . . . . . . . . . . . 3 1 4 Targets Rammed 23 | . 2 3 . . . . . . . . . . 10 . 3 1 4 Kicked 15 | . 2 3 . . . . . . . . . . 10 . . . . Crushed . | . . . . . . . . . . . . . . . . . . Highest Temperature 426 | 172 230 273 . 304 285 135 141 15 135 144 6 353 426 . 6 . 122 Average Temperature 80 | 61 84 59 . 96 87 43 46 10 57 48 6 85 149 . 6 . 64 Received Heat Transfer 3129 | . 84 192 . 333 315 108 108 9 324 216 126 324 795 . 129 45 21 Effects 11 | . . . . 1 5 . . . . . . . 5 . . . . Shutdowns 4 | . . . . . . . . . . . . . 4 . . . . Energy Bleed 1 | . . . . . . . . . . . . . 1 . . . . Interference 6 | . . . . 1 5 . . . . . . . . . . . . Siege Activations . | . . . . . . . . . . . . . . . . . . Martial Activations . | . . . . . . . . . . . . . . . . . . Shielding Activations . | . . . . . . . . . . . . . . . . . . Robots Disrupted . | . . . . . . . . . . . . . . . . . . Combat Hostiles . | . . . . . . . . . . . . . . . . . . Robots Corrupted 2 | . . . . 1 . . . . . . . . 1 . . . . Combat Hostiles 2 | . . . . 1 . . . . . . . . 1 . . . . Parts Fried 1 | . . . . 1 . . . . . . . . . . . . . Impact Corruptions 3 | . . . . . . . . . . . . . 2 . 1 . . Robots Melted 13 | 1 . 4 . 1 . . 1 . 2 . 1 3 . . . . . Combat Hostiles 11 | . . 3 . 1 . . 1 . 2 . 1 3 . . . . . Parts Melted 71 | 1 4 21 . 5 . 4 2 1 19 2 6 6 . . . . . Heat Transferred 19648 | 891 1211 4107 . 2516 814 2146 1258 185 2864 703 908 1342 703 . . . . Parts Sabotaged 2 | . . . . . . . . . . . 2 . . . . . . Parts Stolen . | . . . . . . . . . . . . . . . . . . Parts Stripped . | . . . . . . . . . . . . . . . . . . Power Chain Reactions . | . . . . . . . . . . . . . . . . . . Alert | -11 -10 -9 -8 -8 -8 -7 -6 -5 -5 -5 -5 -4 -4 -4 -4 -4 -4 ------- Run | Yrd Mat Mat Mat Gar Mat Fac Fac Fac Upp Upp War Pro Fac Was Fac Gar Fac Maximum Alert Level 3 | . . 1 . 3 2 1 . . . . . . . . 1 1 . Low Security (%) 70 | 100 100 91 100 39 . 80 100 100 . . . . 100 100 93 53 100 Level 1 12 | . . 8 . 12 42 19 . . . . . . . . 6 46 . Level 2 14 | . . . . 32 57 . . . . . . . . . . . . Level 3 2 | . . . . 15 . . . . . . . . . . . . . Level 4 . | . . . . . . . . . . . . . . . . . . Level 5 . | . . . . . . . . . . . . . . . . . . High Security . | . . . . . . . . . . . . . . . . . . Max Security . | . . . . . . . . . . . . . . . . . . Peak Influence 872 | 15 70 225 72 872 577 256 151 66 . . . . 25 . 235 357 177 Initial 425 | . . 9 72 40 425 256 84 61 . . . . 13 . . 151 177 Average 170 | 2 22 78 68 373 423 125 93 21 . . . . 4 . 34 237 57 Influence Increases 5185 | 50 167 454 . 1012 610 345 349 42 330 268 315 416 117 . 417 248 45 Destroy 0b10 Robot/C 3160 | . 120 320 . 500 360 220 200 . 300 220 260 340 100 . 140 80 . Destroy 0b10 Robot/NC 200 | 50 15 20 . . 55 30 . 10 . . 10 . 5 . 5 . . Destroy Leader 520 | . 32 92 . 30 110 64 50 2 20 40 . 40 10 . 20 10 . Allied During Kill 147 | . . . . 3 . 30 85 5 10 8 . 6 . . . . . Successful Hack 87 | . . 20 . 14 11 . 14 10 . . . . . . 18 . . Disable Machine 105 | . . . . . 15 . . 15 . . . . . . 75 . . Anti-Garrison Action 500 | . . . . 450 . . . . . . . . . . . 50 . Destroy Structure 181 | . . 2 . 15 29 1 . . . . . . 2 . 24 108 . Partial Spotted 45 | . . . . . . . . . . . . . . . 45 . . Lose Combat Pursuer 240 | . . . . . 30 . . . . . 45 30 . . 90 . 45 Influence Decreases 5185 | 50 143 305 111 202 917 736 396 169 330 244 142 591 139 . 200 126 384 Entered New Map 1508 | . . 15 101 22 447 309 90 66 . . 24 197 9 . . 66 162 Time Decay 2890 | 50 143 270 10 . 440 389 246 103 250 211 108 244 68 . 146 . 212 Lost Part 576 | . . 20 . 140 30 20 . . 40 20 10 110 62 . 54 60 10 Lost Ally 211 | . . . . 40 . 18 60 . 40 13 . 40 . . . . . Squads Dispatched 21 | . 2 2 . . 4 2 1 3 . . . 1 . . 4 . 2 Investigation 3 | . 1 1 . . . . 1 . . . . . . . . . . Extermination 6 | . . . . . . 1 . 1 . . . . . . 2 . 2 Reinforcement 9 | . 1 1 . . 2 1 . 2 . . . . . . 2 . . Assault 1 | . . . . . . . . . . . . 1 . . . . . Garrison 2 | . . . . . 2 . . . . . . . . . . . . Intercept . | . . . . . . . . . . . . . . . . . . Searches Triggered . | . . . . . . . . . . . . . . . . . . Construction Impeded 1 | . . . . . 1 . . . . . . . . . . . . Haulers Reinforced 1 | . . . . . . . . . . . . . . . 1 . . Active Scanning Responses . | . . . . . . . . . . . . . . . . . . Cargo Convoy Interrupts . | . . . . . . . . . . . . . . . . . . Stealth | -11 -10 -9 -8 -8 -8 -7 -6 -5 -5 -5 -5 -4 -4 -4 -4 -4 -4 --------- Run | Yrd Mat Mat Mat Gar Mat Fac Fac Fac Upp Upp War Pro Fac Was Fac Gar Fac Distress Signals 11 | . 1 1 . . 2 . . . . . 3 . . . 3 . 1 Communications Jammed . | . . . . . . . . . . . . . . . . . . Distress Signals . | . . . . . . . . . . . . . . . . . . Times Spotted 276 | . 10 18 . 27 27 16 11 1 15 11 64 19 7 11 21 5 13 Peak Tracking Total 10 | . 4 5 . 4 4 3 4 2 7 4 10 7 4 6 7 4 8 Tactical Retreats 13 | . . . . . 2 . . . . . 3 1 . 2 3 . 2 Traps | -11 -10 -9 -8 -8 -8 -7 -6 -5 -5 -5 -5 -4 -4 -4 -4 -4 -4 ------- Run | Yrd Mat Mat Mat Gar Mat Fac Fac Fac Upp Upp War Pro Fac Was Fac Gar Fac Traps Triggered 15 | . 2 1 . 6 . . . 1 . . . . 1 . 1 1 2 Indirectly . | . . . . . . . . . . . . . . . . . . Trap Hack Attempts . | . . . . . . . . . . . . . . . . . . Triggered . | . . . . . . . . . . . . . . . . . . Disarmed . | . . . . . . . . . . . . . . . . . . Reprogrammed . | . . . . . . . . . . . . . . . . . . Reused . | . . . . . . . . . . . . . . . . . . Traps Extracted . | . . . . . . . . . . . . . . . . . . Installed . | . . . . . . . . . . . . . . . . . . Triggered . | . . . . . . . . . . . . . . . . . . Machines | -11 -10 -9 -8 -8 -8 -7 -6 -5 -5 -5 -5 -4 -4 -4 -4 -4 -4 ---------- Run | Yrd Mat Mat Mat Gar Mat Fac Fac Fac Upp Upp War Pro Fac Was Fac Gar Fac Machines Disabled 15 | . . . . 5 1 . . 1 . . 1 1 . . 5 1 . Max in Single Turn 1 | . . . . 1 1 . . 1 . . 1 1 . . 1 1 . Garrison Access 2 | . . . . . . . . . . . . . . . . . 2 Garrison Relay 6 | . . . . 5 . . . . . . . . . . . 1 . Machines Repaired . | . . . . . . . . . . . . . . . . . . Machines Dismantled . | . . . . . . . . . . . . . . . . . . Machines Sabotaged . | . . . . . . . . . . . . . . . . . . Overloaded Fab Kills . | . . . . . . . . . . . . . . . . . . Hacking | -11 -10 -9 -8 -8 -8 -7 -6 -5 -5 -5 -5 -4 -4 -4 -4 -4 -4 --------- Run | Yrd Mat Mat Mat Gar Mat Fac Fac Fac Upp Upp War Pro Fac Was Fac Gar Fac Machines Accessed 31 | . . 3 1 3 3 4 2 1 . . 5 . . . 4 . 5 Terminals 13 | . . 3 . 3 3 1 . . . . . . . . 2 . 1 Fabricators 5 | . . . . . . 2 2 . . . . . . . 1 . . Repair Stations 1 | . . . . . . . . . . . . . . . . . 1 Recycling Units 2 | . . . . . . 1 . . . . . . . . . . 1 Scanalyzers 1 | . . . . . . . . 1 . . . . . . . . . Garrison Access 4 | . . . 1 . . . . . . . . . . . 1 . 2 Total Hacks 70 | . . 7 2 6 9 8 6 2 . . 14 . . . 9 . 7 Successful 37 | . . 2 1 1 3 4 5 1 . . 14 . . . 3 . 3 Failed 33 | . . 5 1 5 6 4 1 1 . . . . . . 6 . 4 Catastrophic 8 | . . 3 . 1 2 . . . . . . . . . . . 2 Database Lockouts . | . . . . . . . . . . . . . . . . . . Manual 12 | . . 2 . . 7 . 1 . . . . . . . 1 . 1 Terminals 31 | . . 7 . 6 9 2 . . . . . . . . 6 . 1 Fabricators 12 | . . . . . . 4 6 . . . . . . . 2 . . Repair Stations 2 | . . . . . . . . . . . . . . . . . 2 Recycling Units 4 | . . . . . . 2 . . . . . . . . . . 2 Scanalyzers 2 | . . . . . . . . 2 . . . . . . . . . Garrison Access 5 | . . . 2 . . . . . . . . . . . 1 . 2 Terminal Hacks 22 | . . 2 . 1 3 . . . . . 14 . . . 2 . . Record 14 | . . . . . . . . . . . 14 . . . . . . Robot Schematic 2 | . . . . . 2 . . . . . . . . . . . . Robot Analysis 1 | . . 1 . . . . . . . . . . . . . . . Prototype ID Bank 1 | . . 1 . . . . . . . . . . . . . . . Emergency Access Points 2 | . . . . 1 1 . . . . . . . . . . . . Locate Traps 1 | . . . . . . . . . . . . . . . 1 . . Zone Layout 1 | . . . . . . . . . . . . . . . 1 . . Fabricator Hacks 8 | . . . . . . 4 4 . . . . . . . . . . Load Schematic 4 | . . . . . . 2 2 . . . . . . . . . . Build 4 | . . . . . . 2 2 . . . . . . . . . . Repair Station Hacks . | . . . . . . . . . . . . . . . . . . Recycling Unit Hacks 1 | . . . . . . . . . . . . . . . . . 1 Retrieve Matter 1 | . . . . . . . . . . . . . . . . . 1 Scanalyzer 1 | . . . . . . . . 1 . . . . . . . . . Retrieve Study 1 | . . . . . . . . 1 . . . . . . . . . Garrison Access Hacks 4 | . . . 1 . . . . . . . . . . . 1 . 2 Unlock Access 2 | . . . 1 . . . . . . . . . . . 1 . . Seal Access 2 | . . . . . . . . . . . . . . . . . 2 Unauthorized Hacks 1 | . . . . . . . 1 . . . . . . . . . . Terminals . | . . . . . . . . . . . . . . . . . . Fabricators 1 | . . . . . . . 1 . . . . . . . . . . Liberate 1 | . . . . . . . 1 . . . . . . . . . . Repair Stations . | . . . . . . . . . . . . . . . . . . Recycling Units . | . . . . . . . . . . . . . . . . . . Scanalyzers . | . . . . . . . . . . . . . . . . . . Garrison Access . | . . . . . . . . . . . . . . . . . . Data Cores Recovered . | . . . . . . . . . . . . . . . . . . Used . | . . . . . . . . . . . . . . . . . . Hacking Detections 17 | . . 2 . 2 2 2 1 1 . . . . . . 4 . 3 Full Trace Events 5 | . . 2 . 2 . . 1 . . . . . . . . . . Feedback Events 1 | . . 1 . . . . . . . . . . . . . . . Corruption 1 | . . 1 . . . . . . . . . . . . . . . Feedback Blocked . | . . . . . . . . . . . . . . . . . . Robot Schematics Acquired 2 | . . . . . 2 . . . . . . . . . . . . Robots Built 10 | . . . . . . 5 5 . . . . . . . . . . Authchips 3 | . . . . . . 2 1 . . . . . . . . . . Time 322 | . . . . . . 215 107 . . . . . . . . . . Total Robot Build Rating 26 | . . . . . . 13 13 . . . . . . . . . . Part Schematics Acquired . | . . . . . . . . . . . . . . . . . . Parts Built . | . . . . . . . . . . . . . . . . . . Authchips . | . . . . . . . . . . . . . . . . . . Time . | . . . . . . . . . . . . . . . . . . Total Part Build Rating . | . . . . . . . . . . . . . . . . . . Part Studies Acquired 1 | . . . . . . . . 1 . . . . . . . . . Parts Repaired . | . . . . . . . . . . . . . . . . . . Time . | . . . . . . . . . . . . . . . . . . Parts Recycled . | . . . . . . . . . . . . . . . . . . Recycled Matter . | . . . . . . . . . . . . . . . . . . Retrieved Matter . | . . . . . . . . . . . . . . . . . . Retrieved Components . | . . . . . . . . . . . . . . . . . . Parts Scanalyzed . | . . . . . . . . . . . . . . . . . . Part Schematics Acquired . | . . . . . . . . . . . . . . . . . . Parts Damaged . | . . . . . . . . . . . . . . . . . . Bothacking | -11 -10 -9 -8 -8 -8 -7 -6 -5 -5 -5 -5 -4 -4 -4 -4 -4 -4 ------------ Run | Yrd Mat Mat Mat Gar Mat Fac Fac Fac Upp Upp War Pro Fac Was Fac Gar Fac Used RIF Installer 1 | . . . . . . . . . . . . . . . . 1 . Robots Hacked . | . . . . . . . . . . . . . . . . . . Non-combat . | . . . . . . . . . . . . . . . . . . Combat . | . . . . . . . . . . . . . . . . . . Robot Hacks Applied . | . . . . . . . . . . . . . . . . . . Relay Couplers Released 21 | . . . . 16 . . . . . . . . . . . 5 . Machine Destruction 21 | . . . . 16 . . . . . . . . . . . 5 . Fabnet Peak Effective % . | . . . . . . . . . . . . . . . . . . Robots Rewired 4 | . . . . . . . . . 2 . . 2 . . . . . Allies Hacked 1 | . . . . . . . . 1 . . . . . . . . . Hacks Repelled . | . . . . . . . . . . . . . . . . . . Allies | -11 -10 -9 -8 -8 -8 -7 -6 -5 -5 -5 -5 -4 -4 -4 -4 -4 -4 -------- Run | Yrd Mat Mat Mat Gar Mat Fac Fac Fac Upp Upp War Pro Fac Was Fac Gar Fac Total Allies 19 | . . . . 2 . 5 8 . 2 . . 2 . . . . . Largest Group 7 | . . . . 2 . 3 7 7 4 2 . 2 . . . . . Highest-Rated Group 135 | . . . . 45 . 48 135 123 64 59 . 77 . . . . . Highest-Rated Ally 47 | . . . . 25 . 16 29 29 30 30 . 47 . . . . . Initial Warlord ECA Mod 7 | . . . . . 7 6 5 4 4 4 4 3 3 3 3 3 . Total Orders . | . . . . . . . . . . . . . . . . . . Ally Attacks 144 | . . . . 4 . 33 54 10 30 8 . 5 . . . . . Total Damage 2065 | . . . . 97 . 483 807 125 309 111 . 133 . . . . . Kills 20 | . . . . 2 . 7 6 1 1 3 . . . . . . . Allies Corrupted . | . . . . . . . . . . . . . . . . . . Allies Melted 1 | . . . . . . . . . . . 1 . . . . . . Intel | -11 -10 -9 -8 -8 -8 -7 -6 -5 -5 -5 -5 -4 -4 -4 -4 -4 -4 ------- Run | Yrd Mat Mat Mat Gar Mat Fac Fac Fac Upp Upp War Pro Fac Was Fac Gar Fac Active Infowar (turns) 6700 | 203 434 789 28 387 . . . . . 817 1173 884 334 173 660 118 700 Optics 1766 | . . . . . . . . . . . . . 115 173 660 118 700 Sensors 1307 | . . . . . . . . . . . . . . . 572 86 649 Terrain 94 | . . . . . . . . . . . . . 94 . . . . Seismic 1841 | 203 434 789 28 387 . . . . . . . . . . . . . Decoding 3245 | . . . . . . . . . . 817 1173 884 334 37 . . . Cloaking 173 | . . . . . . . . . . . . . . . 173 . . Robot Analysis Total 1 | . . 1 . . . . . . . . . . . . . . . Derelict Logs Recovered 4 | . . . . . . . . . 1 1 . 2 . . . . . Drone Launches . | . . . . . . . . . . . . . . . . . . Drone Recoveries . | . . . . . . . . . . . . . . . . . . Decoded 0b10 Intel 9 | . . . . . . . . . . . . . 9 . . . . Patrols 9 | . . . . . . . . . . . . . 9 . . . . Exploration | -11 -10 -9 -8 -8 -8 -7 -6 -5 -5 -5 -5 -4 -4 -4 -4 -4 -4 ------------- Run | Yrd Mat Mat Mat Gar Mat Fac Fac Fac Upp Upp War Pro Fac Was Fac Gar Fac Turns Passed 11402 | 276 434 795 28 1443 1091 939 534 367 625 828 1173 884 334 173 660 118 700 Spaces Moved 7627 | 153 170 301 15 606 458 460 261 254 399 587 790 637 173 252 819 158 1134 Core 1272 | 8 . . . . . . . . . . . . 56 252 269 34 653 Treads 31 | . . . . . 31 . . . . . . . . . . . . Legs 5061 | 145 170 301 15 606 383 460 261 254 399 587 790 637 53 . . . . Wheels 200 | . . . . . 44 . . . . . . . 64 . 92 . . Hover 848 | . . . . . . . . . . . . . . . 243 124 481 Flight 215 | . . . . . . . . . . . . . . . 215 . . Fastest Speed 39 | 50 120 190 190 120 130 130 125 124 120 122 104 102 50 50 39 48 50 Average Speed 113 | 116 185 190 190 181 185 130 127 124 123 124 121 105 100 50 58 57 53 Slowest Speed 450 | 120 260 190 190 260 320 130 130 124 124 193 124 110 450 50 200 180 66 Overloaded Moves . | . . . . . . . . . . . . . . . . . . Propulsion Burnouts . | . . . . . . . . . . . . . . . . . . Robots Hopped 5 | . . . . . . . . . . . . . . . 5 . . Potential Cave-ins 5 | . . . . . . . . . . . 5 . . . . . . Cave-ins Triggered . | . . . . . . . . . . . . . . . . . . Exploration Rate (%) 34 | 6 33 27 3 50 41 14 6 9 58 71 80 59 8 85 22 31 22 Regions Visited 17 Branch Regions 4 Pre-discovered Areas 3 | . . . . . . . . . 2 1 . . . . . . . Known Exits Taken 2 | . . . 1 . . . . . . . . . . . 1 . . Unknown Exits Taken 11 | 1 1 1 . . 1 1 1 1 1 1 1 1 . . . . . Scrap Searched 5 | . . . . . . . . . 2 1 . 2 . . . . . Spaces Dug 1 | . . . . . . . . . . . . . 1 . . . . Terrain Destroyed 285 | . . . . . 33 . . . . 10 55 102 3 . 17 65 . Melee 1 | . . . . . . . . . . . . . 1 . . . . Projectile 46 | . . . . . . . . . . 10 11 11 2 . 9 3 . AOE 238 | . . . . . 33 . . . . . 44 91 . . 8 62 . Terrain Rammed . | . . . . . . . . . . . . . . . . . . Walls Destroyed . | . . . . . . . . . . . . . . . . . . Machines Disabled . | . . . . . . . . . . . . . . . . . . Actions | -11 -10 -9 -8 -8 -8 -7 -6 -5 -5 -5 -5 -4 -4 -4 -4 -4 -4 --------- Run | Yrd Mat Mat Mat Gar Mat Fac Fac Fac Upp Upp War Pro Fac Was Fac Gar Fac Total 9487 | 193 238 422 15 797 585 738 431 302 478 628 934 792 258 298 971 178 1229 Wait 893 | 1 33 38 . 39 26 206 125 30 8 5 62 73 21 46 91 12 77 Move 7600 | 152 169 300 14 605 457 459 260 253 398 586 789 636 173 251 808 156 1134 Hop 5 | . . . . . . . . . . . . . . . 5 . . Pick Up 102 | 5 2 12 . 8 11 12 8 5 2 1 10 11 1 1 9 . 4 Fast Attach 73 | 7 2 3 . 8 6 6 1 1 4 3 . 4 7 . 16 . 5 Attach 62 | . . 4 1 10 2 6 2 1 3 2 4 8 8 . 7 1 3 Detach 7 | . . . . . . . . . 1 . . . . . 5 1 . Swap 82 | 1 5 8 . 9 13 7 9 3 2 2 16 7 . . . . . Drop 97 | . 2 9 . 5 11 13 10 4 4 2 14 13 1 . 6 1 2 Fire 448 | 27 23 45 . 76 58 28 16 3 25 25 39 35 21 . 21 6 . Melee 33 | . . . . 12 1 1 . . . 2 . 1 16 . . . . Ram 8 | . . . . . . . . . . . . . . . 3 1 4 Kick 15 | . 2 3 . . . . . . . . . . 10 . . . . Crush . | . . . . . . . . . . . . . . . . . . Escape Stasis 27 | . . . . 25 . . . 2 . . . . . . . . . Rewire 35 | . . . . . . . . . 31 . . 4 . . . . . Trap . | . . . . . . . . . . . . . . . . . . Miscellaneous . | . . . . . . . . . . . . . . . . . . Route ------- -11/Scrapyard -10/Materials -9/Materials -8/Materials -8/Garrison -8/Materials -7/Factory -6/Factory -5/Factory -5/Upper Caves -5/Upper Caves -5/Warlord -4/Proximity Caves -4/Factory -4/Waste -4/Factory -4/Garrison -4/Factory History --------- Turn | Location | Event 7 | -11/Scrapyard | Discovered new exit (range 15) 277 | -11/Scrapyard | Entered Materials 313 | -10/Materials | Build established: Mutant 677 | -10/Materials | Discovered new exit (range 14) 711 | -10/Materials | Entered another Materials area 711 | -9/Materials | Evolved 2 slots: Utility x1, Weapon x1 1016 | -9/Materials | Build established: Gunner 1478 | -9/Materials | Discovered new exit (range 13) 1506 | -9/Materials | Entered another Materials area 1506 | -8/Materials | Evolved 2 slots: Propulsion x1, Utility x1 1532 | -8/Materials | Identified exit to Garrison 1534 | -8/Materials | Entered Garrison 1620 | -8/Garrison | Triggered checkpoint 1940 | -8/Garrison | System corruption reached 10% 2008 | -8/Garrison | Lost 9 parts (1p2n2u4w) 2138 | -8/Garrison | Triggered checkpoint 2274 | -8/Garrison | Triggered checkpoint 2350 | -8/Garrison | Triggered checkpoint 2488 | -8/Garrison | Rescued a captive Derelict 2489 | -8/Garrison | Rescued a captive Derelict 2536 | -8/Garrison | Triggered checkpoint 2588 | -8/Garrison | Build established: Scavenger-Tank 2590 | -8/Garrison | Garrison Relay disabled 2754 | -8/Garrison | Garrison Relay disabled 2762 | -8/Garrison | Garrison Relay disabled 2774 | -8/Garrison | Garrison Relay disabled 2783 | -8/Garrison | Garrison Relay disabled 2895 | -8/Garrison | Build established: Scavenger-Mutant 2952 | -8/Garrison | Discovered new exit (range 13) 2977 | -8/Garrison | Entered Materials 3876 | -8/Materials | Garrison activated, responded to threat 4013 | -8/Materials | Garrison activated, responded to threat 4055 | -8/Materials | Discovered new exit (range 8) 4068 | -8/Materials | Entered Factory 4068 | -7/Factory | Evolved 2 slots: Propulsion x1, Utility x1 4109 | -7/Factory | Build established: Gunner 4408 | -7/Factory | Fabricated Y-45 Defender (x2) 4463 | -7/Factory | Build established: Mutant 4768 | -7/Factory | Fabricated G-47 Trooper (x3) 4813 | -7/Factory | Build established: Gunner 4944 | -7/Factory | Discovered new exit (range 10) 5007 | -7/Factory | Entered another Factory area 5007 | -6/Factory | Accompanied by 3 allies 5007 | -6/Factory | Evolved 2 slots: Utility x2 5174 | -6/Factory | Lost 3 allies 5175 | -6/Factory | Fabricated Y-45 Defender (x2) 5224 | -6/Factory | Spotted B-75 Beast 5244 | -6/Factory | Allies destroyed B-75 Beast 5453 | -6/Factory | Discovered new exit (range 15) 5477 | -6/Factory | Fabricated G-47 Trooper? 5541 | -6/Factory | Entered another Factory area 5541 | -5/Factory | Accompanied by 7 allies 5541 | -5/Factory | Evolved 2 slots: Propulsion x1, Utility x1 5891 | -5/Factory | Discovered new exit (range 5) 5908 | -5/Factory | Entered Upper Caves 5908 | -5/Upper Caves | Accompanied by 4 allies 5909 | -5/Upper Caves | Encountered a Warlord checkpoint 5938 | -5/Upper Caves | Met a Warlord Commander 5939 | -5/Upper Caves | Learned location of Warlord (-5) 5940 | -5/Upper Caves | Warlord Commander delivered Encrypted Comm Array 5947 | -5/Upper Caves | Found Encrypted Comm Array 5959 | -5/Upper Caves | Lost 4 allies 6010 | -5/Upper Caves | Spotted B-75 Beast 6014 | -5/Upper Caves | Destroyed B-75 Beast 6209 | -5/Upper Caves | Build established: Scavenger-Gunner 6264 | -5/Upper Caves | Attracted the attention of an 0b10 outpost 6342 | -5/Upper Caves | Destroyed 7 combat bots 6348 | -5/Upper Caves | Lost 4 parts (2n1u1w) 6392 | -5/Upper Caves | Learned location of Armory (-4) 6515 | -5/Upper Caves | Discovered new exit (range 14) 6533 | -5/Upper Caves | Entered another Upper Caves area 6533 | -5/Upper Caves | Accompanied by 2 allies 6689 | -5/Upper Caves | Encountered a Warlord checkpoint 7204 | -5/Upper Caves | Build established: Mutant 7355 | -5/Upper Caves | Discovered new exit (range 5) 7361 | -5/Upper Caves | Entered Warlord 7404 | -5/Warlord | System corruption cleaned by Quarantine Array 7545 | -5/Warlord | Found Prototype Special Weapon 7547 | -5/Warlord | Found Prototype Special Weapon 7892 | -5/Warlord | Learned Testing trap positions 7893 | -5/Warlord | Learned 4 Access zone layouts 7893 | -5/Warlord | Learned 4 Research zone layouts 7893 | -5/Warlord | Learned 4 Research zone layouts 7895 | -5/Warlord | Learned Armory repair station intel 7895 | -5/Warlord | Learned Quarantine security intel 7927 | -5/Warlord | Met Warlord 7952 | -5/Warlord | Warlord's base attacked by MAIN.C 8302 | -5/Warlord | Warlord forces counterattacked 8391 | -5/Warlord | Spotted Executioner 8428 | -5/Warlord | Spotted Striker 8432 | -5/Warlord | Identified RU-N14's Throwing Claymores v3 (x2) 8461 | -5/Warlord | Spotted Striker 8471 | -5/Warlord | Destroyed Striker 8508 | -5/Warlord | Lost 18 allies 8513 | -5/Warlord | Discovered new exit (range 12) 8534 | -5/Warlord | Entered Proximity Caves 8541 | -4/Proximity Caves | Build established: Scavenger-Mutant 8584 | -4/Proximity Caves | Found DCF Scrap (12 items) 8746 | -4/Proximity Caves | Unaware initiated a cargo recovery operation 8910 | -4/Proximity Caves | Attracted the attention of an 0b10 outpost 8976 | -4/Proximity Caves | Lost 6 parts (2n1u3w) 9009 | -4/Proximity Caves | Core integrity fell below 50% 9100 | -4/Proximity Caves | Lost 3 parts (2n1w) 9339 | -4/Proximity Caves | Learned Research stockpile data 9405 | -4/Proximity Caves | Discovered new exit (range 11) 9418 | -4/Proximity Caves | Entered Factory 9418 | -4/Factory | Evolved 2 slots: Power x1, Weapon x1 9611 | -4/Factory | Lost 11 parts (1p5n4u1w) 9718 | -4/Factory | Core integrity fell below 50% 9751 | -4/Factory | Lost 11 parts (3p2n3u3w) 9752 | -4/Factory | Sucked down chute 9752 | -4/Factory | Entered Waste 9762 | -4/Waste | Spotted C-40 Crusher 9771 | -4/Waste | Spotted C-40 Crusher 9776 | -4/Waste | Spotted C-40 Crusher 9778 | -4/Waste | Spotted C-40 Crusher 9781 | -4/Waste | Spotted C-40 Crusher 9789 | -4/Waste | Crushed by Compactor (1 part destroyed, 1 dropped) 9862 | -4/Waste | Spotted C-40 Crusher 9882 | -4/Waste | Discovered new exit (range 22) 9925 | -4/Waste | Entered Factory 9959 | -4/Factory | Build established: Mutant 10585 | -4/Factory | Identified exit to Garrison 10585 | -4/Factory | Entered Garrison 10603 | -4/Garrison | Triggered checkpoint 10613 | -4/Garrison | Lost 3 parts (1n2u) 10650 | -4/Garrison | Core integrity fell below 20% 10652 | -4/Garrison | Garrison Relay disabled 10657 | -4/Garrison | Triggered checkpoint 10690 | -4/Garrison | Discovered new exit (range 10) 10695 | -4/Garrison | Installed Relay Interface Framework 10702 | -4/Garrison | Identified exit to Factory 10703 | -4/Garrison | Entered Factory 10715 | -4/Factory | Lost 6 parts (1p4n1u) 10992 | -4/Factory | Build established: Scout 11403 | -4/Factory | Destroyed by G-73 Enforcer with Phase Gun Last Messages --------------- 11336_ K-01 Serf cleans the Fusion Modulator. 11340_ System corrupted: Component data lost. 11341_ K-01 Serf cleans the Fusion Modulator. 11345_ Acquired Lgt. Antimatter Reactor. 11351_ ALERT: Cargo convoy en route, clear transfer corridor. 11352_ Acquired Exp. Heat Sink. 11354_ Acquired Fusion Compressor. 11360_ Dropped Fusion Compressor. 11363_ K-01 Serf cleans the Fabricator. 11381_ Slammed into R-10 Processor. 11385_ Imp. Antigrav System destroyed. 11391_ ALERT: Potential suspicious activity detected, Programmers report to Factory Zone 9W. 11392_ System corrupted: Matter fused (-5). 11396_ Slammed into U-05 Engineer. 11396_ Adv. Sensor Array destroyed. 11396_ System corrupted by crushing effect (+3). 11396_ Destabilizing: System corrupted (+2). 11396_ U-05 Engineer sends out distress signal. 11397_ Slammed into U-05 Engineer. Map ----- +----------------------------------------------------+ | #???????# # !! #????????????# | | #???????? # !! #????????????# | | #?????????? # !! #????????????# | | #???????????? # #????????????# | | #?????????????? # #????????????# | | "" #??????????######+### #????????????# | | "" ############ # #????????????# | | "" / + #????????????# | | ## # """ #????????????# | | ## "" # """ #????????????/ | | ##+##### """ """ """ # """ #????????????# | | ?# ##### "F """ """ # "" #????????????# | | ## """ """ """ # "" #????????????# | | """ # #????????????# | | """ ########????????????# | | #???????????????????# | | = #???????????????????# | | #####+####### #???????????????????# | | ###### ### ### #???????????????????# | | # """ #?# #?# ##################### | | """" #! """ #?# #?# | | """" # """ #?# #?#g####### | | """" # #?# #?# #?????# """ """ """ """ | | """"!# #?# #?# #?????# """ """ """ """ | | # ! " " #?# #?# #?????# """ """ """ """ | | + "R" #?# ###@####### | | # """ #?# # u # = | | "" ############ # # ###########+ | | T" #?# ] + # # #????????? | | "" #?# # # """ """ # #????????? | | #?# """"# # """ """ + #????????""" | | ######## """?# # """ """ # #????????""" | | # """?# # # #???????"" | | """" # ""??# # ! + #??????? | | """" # ??# #############+#+#??????""""" | | """" # ???# ########????? ?????""""" | | """" # ???# # #??? ???""" | | """" ##?##????# # #? #???? | | """" #????????# # """ # #???? | | #????????# # """ # #????? | | ######+########## # """ # #??????? | | # [# #??????? | | # """ # #??????? | | + """ # #??????? | | # """ # #??????? | | # # #??????? | | #############+#### ## """ # #??????? | | ????????? ?# ## """ ##############??????? | | ????? # ## """ #???????????????????? | | #??# """ """ # ## #???????????????????? | +----------------------------------------------------+ Best States ------------- Heat Dissipation 98 Energy Generation 39 Energy Capacity 1170 Matter Stores 300 Matter Capacity 300 Sight Range 22 Robot Scan Range 16 Terrain Scan Range 16 Terrain Scan Density 85 Cloak Strength 3 Armor Coverage 600 Evasion (%) 62 Targeting Accuracy 22 Core Analysis 6 Recoil Reduction 2 Offensive Hacking 12 Authchip Count 4 Item Schematics ----------------- None Robot Schematics ------------------ G-47 Trooper | -8/Materials | Hacked Y-45 Defender | -8/Materials | Hacked Fabricated ------------ Y-45 Defender | x2 | -7/Factory | Authchip G-47 Trooper | x3 | -7/Factory | Authchip Y-45 Defender | x2 | -6/Factory | Authchip G-47 Trooper | x3 | -6/Factory Repaired ---------- Nothing Studied --------- Hvy. Laser | -5/Factory | Hacked Alien Tech Used ----------------- None Achievements -------------- I Like You, Cogmind Late Bloomer Official Business War Machine Challenges ------------ None Game ------ Seed PlatingArmageddonMount Manual? 0 Play Time 01:23:29 Cumulative 233.6 hours Start 2025.10.22 @ 20:53:54 End 2025.10.22 @ 22:31:57 Sessions 1 Manual Loads 0 Difficulty Rogue Special Mode None Game No. 541 Rogue 541 Adventurer 0 Explorer 0 Win Type - Total 13 Types 9/0/2/1/1/0/0/0/0/0 Lore% 79 Gallery% 68 Achievement% 45 Wizard Run 0 Options --------- Layout 0 ASCII 0 Keyboard 0 Movement Numpad Keybinds 0 Fullscreen 2 Font 18/Terminus Map View 76x50 Zoom Use 0% Tactical HUD 1 Map Filters NONE Filters SATURATION(100) Steam 1 RUN: 4a842794-72ae-44ab-95c6-463abf3b2cca